bitfinex-derivatives/quotes_BTCF0:USTF0_20250527
["timestamp","ask_amount","ask_price","bid_price","bid_amount"]
[1748314771414,0.6426564,108320.0,108310.0,0.59349141]
[1748314771614,0.6427764,108320.0,108310.0,0.59349141]
[1748314772620,1.0035764,108320.0,108310.0,0.4843083]
[1748314772824,0.6971764,108320.0,108310.0,0.4843083]
[1748314773022,1.0579764,108320.0,108310.0,0.4843083]
[1748314773626,0.6971764,108320.0,108310.0,0.59349141]
[1748314774422,0.2816164,108320.0,108310.0,0.59349141]
[1748314774626,0.6971364,108320.0,108310.0,0.59349141]
[1748314775018,0.6970164,108320.0,108310.0,0.59349141]
[1748314775213,0.6971364,108320.0,108310.0,0.59788323]
[1748314777030,0.2816164,108320.0,108310.0,0.59788323]
[1748314777229,0.6971364,108320.0,108310.0,0.59788323]
[1748314777726,0.2816164,108320.0,108310.0,0.59788323]
[1748314777927,0.6971364,108320.0,108310.0,0.59788323]
[1748314778225,0.2816164,108320.0,108310.0,0.59788323]
[1748314778432,0.6971364,108320.0,108310.0,0.59788323]
[1748314779631,0.6427364,108320.0,108310.0,0.59788323]
[1748314779834,0.6994364,108320.0,108310.0,0.59788323]
[1748314782533,0.2839164,108320.0,108310.0,0.59788323]
[1748314782835,0.7551364,108320.0,108310.0,0.59788323]
[1748314792340,0.3396164,108320.0,108310.0,0.59788323]
[1748314792541,0.7551372,108320.0,108310.0,0.59788323]
[1748314798443,0.7551372,108320.0,108310.0,0.54298323]
[1748314799555,0.7551372,108320.0,108310.0,0.43380012]
[1748314799753,1.56512031,108320.0,108310.0,0.30010082]
[1748314800245,1.5046972,108320.0,108310.0,0.40928393]
[1748314800438,1.2545772,108320.0,108310.0,0.40928393]
[1748314800644,1.5245772,108320.0,108310.0,0.46278393]
[1748314800845,1.1645772,108320.0,108310.0,0.46278393]
[1748314801041,1.5853772,108320.0,108310.0,0.46278393]
[1748314801246,1.70468031,108320.0,108310.0,0.46278393]
[1748314801449,2.01468031,108320.0,108310.0,0.46278393]
[1748314802146,1.9054972,108320.0,108310.0,0.46278393]
[1748314802351,2.01468031,108320.0,108310.0,0.35360082]
[1748314802650,2.00468031,108320.0,108310.0,0.35360082]
[1748314803951,1.59512031,108320.0,108310.0,0.35360082]
[1748314804151,1.65262592,108320.0,108310.0,0.35360082]
[1748314805045,1.54344281,108320.0,108310.0,0.35360082]
[1748314805350,1.65262592,108320.0,108310.0,0.35360082]
[1748314805551,1.65262592,108320.0,108310.0,0.30010082]
[1748314805740,1.65262592,108320.0,108310.0,0.11551182]
[1748314806052,1.65262592,108320.0,108310.0,0.30010082]
[1748314806245,1.65262592,108320.0,108310.0,0.11551182]
[1748314806752,1.54344281,108320.0,108310.0,0.11551182]
[1748314806953,1.65262592,108320.0,108310.0,0.11551182]
[1748314808450,1.01552281,108320.0,108310.0,0.11551182]
[1748314808649,0.10015081,108320.0,108310.0,1.51260802]
[1748314808947,0.10003081,108320.0,108310.0,1.61780802]
[1748314809152,0.0426452,108320.0,108310.0,1.62813047]
[1748314809357,0.0425252,108320.0,108310.0,1.62813047]
[1748314809653,0.0426452,108320.0,108310.0,1.62813047]
[1748314810545,0.00212,108320.0,108310.0,1.61780802]
[1748314810849,0.00212,108320.0,108310.0,1.62562746]
[1748314812250,0.00013879,108330.0,108320.0,0.184572]
[1748314812454,0.00013879,108330.0,108320.0,1.72765822]
[1748314813455,0.00013879,108330.0,108320.0,1.61847511]
[1748314813861,0.00013879,108330.0,108320.0,1.62879441]
[1748314814153,0.00213879,108330.0,108320.0,1.62979441]
[1748314814754,0.00413879,108330.0,108320.0,1.62979441]
[1748314815254,0.00213879,108330.0,108320.0,1.62979441]
[1748314815456,0.00213879,108330.0,108320.0,1.63079441]
[1748314815655,0.00113879,108330.0,108320.0,1.63079441]
[1748314817154,0.05623879,108330.0,108320.0,1.63079441]
[1748314818449,0.10713879,108330.0,108320.0,1.63079441]
[1748314820450,0.29169379,108330.0,108320.0,1.63079441]
[1748314820956,0.29169379,108330.0,108320.0,1.63518623]
[1748314822558,0.29169379,108330.0,108320.0,1.22566623]
[1748314822756,0.31169379,108330.0,108320.0,0.14671112]
[1748314822952,1.1316769,108330.0,108320.0,0.14671112]
[1748314823962,1.02249379,108330.0,108320.0,0.14671112]
[1748314824460,1.0629361,108330.0,108320.0,0.13639182]
[1748314824760,1.0629361,108330.0,108320.0,0.32096382]
[1748314825158,1.0629361,108330.0,108320.0,0.13639182]
[1748314825562,1.17211921,108330.0,108320.0,0.13639182]
[1748314827550,1.0629361,108330.0,108320.0,0.13639182]
[1748314827752,1.17211921,108330.0,108320.0,0.13639182]
[1748314829856,1.4783761,108330.0,108320.0,0.32096382]
[1748314830054,1.2483761,108330.0,108320.0,0.32096382]
[1748314830460,0.8330561,108330.0,108320.0,0.43014693]
[1748314830859,1.2485361,108330.0,108320.0,0.43014693]
[1748314831366,1.2485361,108330.0,108320.0,0.32096382]
[1748314834864,0.8330561,108330.0,108320.0,0.32096382]
[1748314835169,0.4722561,108330.0,108320.0,0.32096382]
[1748314835465,1.2485361,108330.0,108320.0,0.32096382]
[1748314837673,0.4722561,108330.0,108320.0,0.43014693]
[1748314837873,0.8877361,108330.0,108320.0,0.32096382]
[1748314838070,1.2485361,108330.0,108320.0,0.32096382]
[1748314840075,1.35771921,108330.0,108320.0,0.32096382]
[1748314841176,0.0417011,108330.0,108320.0,1.35324604]
[1748314841381,0.0415811,108330.0,108320.0,2.30268604]
[1748314841584,0.0417011,108330.0,108320.0,2.19350293]
[1748314841881,0.0415811,108330.0,108320.0,2.19350293]
[1748314842179,0.00125879,108330.0,108320.0,2.20382223]
[1748314846788,0.0539,108350.0,108340.0,0.1845379]
[1748314847083,0.1066,108350.0,108340.0,1.47532101]
[1748314847387,0.1573,108350.0,108340.0,2.04452101]
[1748314847788,0.1573,108350.0,108340.0,2.05260894]
[1748314848084,0.41553879,108360.0,108350.0,0.1845209]
[1748314848288,0.57243879,108360.0,108350.0,0.90030401]
[1748314848680,0.57255879,108360.0,108350.0,0.90030401]
[1748314849084,0.16115879,108360.0,108350.0,0.90030401]
[1748314849384,0.57643879,108360.0,108350.0,0.90030401]
[1748314849590,0.16115879,108360.0,108350.0,0.90030401]
[1748314850086,0.16415879,108360.0,108350.0,0.90130401]
[1748314850582,0.11005879,108360.0,108350.0,0.90569583]
[1748314850784,0.05795879,108360.0,108350.0,0.90569583]
[1748314853294,0.11305879,108360.0,108350.0,0.90569583]
[1748314853489,0.06235879,108360.0,108350.0,0.90569583]
[1748314853791,0.06235879,108360.0,108350.0,1.08569583]
[1748314853979,0.11493879,108360.0,108350.0,1.08569583]
[1748314854183,0.11505879,108360.0,108350.0,1.08569583]
[1748314855294,0.11505879,108360.0,108350.0,0.93794537]
[1748314856898,0.11305879,108360.0,108350.0,0.93994537]
[1748314857399,0.10905879,108360.0,108350.0,0.94194537]
[1748314858594,0.10905879,108360.0,108350.0,1.03774537]
[1748314859298,0.17905879,108360.0,108350.0,1.03774537]
[1748314859594,0.20361781,108400.0,108350.0,1.30469558]
[1748314859901,0.054,108380.0,108370.0,0.591406]
[1748314860103,0.054,108380.0,108370.0,1.925386]
[1748314860992,0.055,108380.0,108370.0,1.925386]
[1748314861192,0.055,108380.0,108370.0,2.03456911]
[1748314861591,0.05512,108380.0,108370.0,2.03456911]
[1748314861994,0.05412,108380.0,108370.0,2.03756911]
[1748314862195,0.05412,108380.0,108370.0,1.520306]
[1748314862396,0.2385898,108380.0,108370.0,0.54666991]
[1748314862602,0.2395898,108380.0,108370.0,0.83870991]
[1748314862796,0.2950898,108380.0,108370.0,0.83870991]
[1748314863001,0.7104098,108380.0,108370.0,0.83870991]
[1748314863595,0.11062,108380.0,108370.0,1.06146991]
[1748314863798,0.11062,108380.0,108370.0,1.57826991]
[1748314863987,0.1105,108380.0,108370.0,1.57826991]
[1748314864186,0.11062,108380.0,108370.0,1.57826991]
[1748314864895,0.11062,108380.0,108370.0,1.30826991]
[1748314865596,0.1105,108380.0,108370.0,1.30826991]
[1748314865898,0.11062,108380.0,108370.0,1.33266173]
[1748314866703,0.11062,108380.0,108370.0,1.63266173]
[1748314866903,0.1105,108380.0,108370.0,1.63266173]
[1748314867202,0.11062,108380.0,108370.0,1.63266173]
[1748314867400,0.0521,108390.0,108380.0,0.1844698]
[1748314867604,0.1083,108390.0,108380.0,1.10255291]
[1748314867806,0.05750561,108420.0,108410.0,0.1844188]
[1748314867997,0.16490561,108420.0,108410.0,1.29520191]
[1748314868200,0.16502561,108420.0,108410.0,1.40180191]
[1748314868807,0.16502561,108420.0,108410.0,1.61180191]
[1748314869005,0.16490561,108420.0,108410.0,1.61180191]
[1748314869208,0.10752,108420.0,108410.0,1.6199929]
[1748314869907,0.10852,108420.0,108410.0,1.6199929]
[1748314870205,0.10952,108420.0,108410.0,1.6199929]
[1748314870711,0.10952,108420.0,108410.0,1.51080979]
[1748314871005,0.10952,108420.0,108410.0,1.6199929]
[1748314871601,0.16032,108420.0,108410.0,1.6199929]
[1748314872009,0.16032,108420.0,108410.0,1.55910191]
[1748314872202,0.16032,108420.0,108410.0,1.3960188]
[1748314872403,0.16032,108420.0,108410.0,1.1760188]
[1748314872603,0.3447218,108420.0,108410.0,1.28520191]
[1748314872807,0.16032,108420.0,108410.0,1.28520191]
[1748314874506,0.16032,108420.0,108410.0,1.34050191]
[1748314875510,0.00212,108420.0,108410.0,1.34050191]
[1748314875806,0.00212,108420.0,108410.0,1.21050191]
[1748314875807,0.10912,108420.0,108410.0,1.21050191]
[1748314876000,0.109,108420.0,108410.0,2.01036191]
[1748314876200,0.10912,108420.0,108410.0,2.01036191]
[1748314876612,0.10912,108420.0,108410.0,1.69418686]
[1748314876800,0.10912,108420.0,108410.0,2.02418686]
[1748314877000,0.10912,108420.0,108410.0,1.69418686]
[1748314877301,0.10912,108420.0,108410.0,2.01418686]
[1748314877811,0.00212,108420.0,108410.0,2.01418686]
[1748314878009,0.002,108420.0,108410.0,2.01418686]
[1748314878210,0.10792,108420.0,108410.0,2.01418686]
[1748314878404,0.00212,108420.0,108410.0,2.01418686]
[1748314878913,0.00212,108420.0,108410.0,2.12336997]
[1748314878914,0.002,108420.0,108410.0,2.12336997]
[1748314879112,0.00212,108420.0,108410.0,2.01418686]
[1748314879912,0.7052793,108450.0,108440.0,0.1843678]
[1748314880107,0.7052793,108450.0,108440.0,0.43355091]
[1748314880312,0.7052793,108450.0,108440.0,0.48765091]
[1748314880509,0.8252793,108450.0,108440.0,0.3243678]
[1748314880703,0.8253993,108450.0,108440.0,0.3243678]
[1748314880904,0.8253993,108450.0,108440.0,0.43355091]
[1748314880905,0.4102793,108450.0,108440.0,0.43355091]
[1748314881103,0.7093593,108450.0,108440.0,0.43455091]
[1748314881305,0.6026,108450.0,108440.0,0.43455091]
[1748314881511,0.7868308,108450.0,108440.0,0.43455091]
[1748314881706,0.3518708,108450.0,108440.0,0.43455091]
[1748314881909,0.7669508,108450.0,108440.0,0.43455091]
[1748314882209,0.7669508,108450.0,108440.0,0.3253678]
[1748314882807,0.3518708,108450.0,108440.0,0.3253678]
[1748314883011,0.7126708,108450.0,108440.0,0.48975091]
[1748314884014,0.3518708,108450.0,108440.0,0.48975091]
[1748314884811,0.3518708,108450.0,108440.0,0.43455091]
[1748314886409,0.39217409,108450.0,108440.0,0.43455091]
[1748314887117,0.39217409,108450.0,108440.0,0.48935091]
[1748314887815,0.39217409,108450.0,108440.0,0.3253678]
[1748314888118,0.39217409,108450.0,108440.0,0.43455091]
[1748314890217,0.8621572,108450.0,108440.0,0.141]
[1748314890519,1.5896372,108450.0,108440.0,0.141]
[1748314891528,1.5896372,108450.0,108440.0,0.3253678]
[1748314891716,1.5896372,108450.0,108440.0,0.141]
[1748314891918,1.5896372,108450.0,108440.0,0.3253678]
[1748314892220,1.5896372,108450.0,108440.0,0.141]
[1748314892616,1.48045409,108450.0,108440.0,0.3253678]
[1748314892922,2.0046772,108450.0,108440.0,0.3253678]
[1748314893420,1.5971972,108450.0,108440.0,0.3253678]
[1748314893826,1.48801409,108450.0,108440.0,0.43455091]
[1748314894426,1.07297409,108450.0,108440.0,0.43455091]
[1748314894624,0.75297409,108450.0,108440.0,0.43455091]
[1748314894825,1.16801409,108450.0,108440.0,0.43455091]
[1748314895015,1.2255197,108450.0,108440.0,0.43455091]
[1748314895522,1.3755197,108450.0,108440.0,0.43455091]
[1748314895713,1.3755197,108450.0,108440.0,0.3253678]
[1748314896114,1.3755197,108450.0,108440.0,0.32975962]
[1748314896322,0.9604797,108450.0,108440.0,0.32975962]
[1748314896516,1.3755196,108450.0,108440.0,0.43894273]
[1748314896828,1.55670712,108450.0,108430.0,0.00013879]
[1748314897015,0.1844528,108390.0,108370.0,0.37859818]
[1748314897322,1.85769719,108390.0,108380.0,0.01367527]
[1748314897518,1.03517719,108390.0,108380.0,0.05367527]
[1748314897723,2.3808803,108390.0,108380.0,0.05367527]
[1748314897925,0.1844698,108380.0,108370.0,0.01793697]
[1748314898119,0.1844868,108370.0,108360.0,0.00138414]
[1748314898322,1.99937302,108370.0,108360.0,0.13138414]
[1748314898520,1.26913302,108370.0,108360.0,0.13138414]
[1748314898822,2.09202366,108370.0,108360.0,0.13138414]
[1748314899019,1.26950366,108370.0,108360.0,0.13138414]
[1748314899219,2.09218366,108370.0,108360.0,0.13138414]
[1748314899620,0.1845039,108360.0,108350.0,0.00013879]
[1748314899822,1.09367012,108360.0,108350.0,0.05013879]
[1748314900020,1.30043932,108360.0,108350.0,0.05013879]
[1748314900219,1.30080996,108360.0,108350.0,0.05013879]
[1748314900527,2.12348996,108360.0,108350.0,0.05013879]
[1748314900725,2.12348996,108360.0,108350.0,0.05113879]
[1748314901528,2.17728996,108360.0,108350.0,0.05113879]
[1748314902112,0.1845209,108350.0,108330.0,0.00012]
[1748314902318,0.1845891,108310.0,108300.0,0.8454054]
[1748314902517,0.1845891,108310.0,108300.0,1.07466412]
[1748314902518,0.60127166,108310.0,108300.0,1.07466412]
[1748314902714,0.60127166,108310.0,108300.0,1.07478412]
[1748314902923,0.6016423,108310.0,108300.0,1.07478412]
[1748314903626,0.6016423,108310.0,108300.0,1.18198412]
[1748314904028,0.6026423,108310.0,108300.0,1.18298412]
[1748314904522,0.0038532,108310.0,108300.0,1.18686412]
[1748314904726,0.6036422,108310.0,108300.0,1.18698412]
[1748314905227,0.6036422,108310.0,108300.0,0.87698412]
[1748314908132,0.0038532,108310.0,108300.0,1.81643818]
[1748314908426,0.0039732,108310.0,108300.0,1.81643818]
[1748314909436,0.0039732,108310.0,108300.0,1.82083]
[1748314909635,0.0039732,108310.0,108300.0,1.728498]
[1748314911935,1e-08,108320.0,108310.0,0.184589]
[1748314912128,0.22950789,108370.0,108360.0,0.1845038]
[1748314912325,0.5998964,108370.0,108360.0,0.3245038]
[1748314912527,1.20191174,108370.0,108360.0,0.12037064]
[1748314912830,0.70718968,108370.0,108360.0,0.30561582]
[1748314913034,0.01379328,108370.0,108360.0,0.66641582]
[1748314913232,0.6000068,108370.0,108360.0,0.76121582]
[1748314913531,0.60739829,108380.0,108370.0,0.1844868]
[1748314913532,1.11503989,108380.0,108370.0,0.1844868]
[1748314913740,0.69963989,108380.0,108370.0,0.35502808]
[1748314913937,1.11503989,108380.0,108370.0,0.35002808]
[1748314914137,1.11503989,108380.0,108370.0,0.35039872]
[1748314914439,1.11499989,108380.0,108370.0,0.35039872]
[1748314914735,1.11499989,108380.0,108370.0,0.35239872]
[1748314914930,0.2305411,108410.0,108380.0,0.0461139]
[1748314915130,0.8452095,108410.0,108400.0,0.9060282]
[1748314915428,0.8452095,108410.0,108400.0,1.0260282]
[1748314915624,0.8452095,108410.0,108400.0,1.12976948]
[1748314915625,0.20802,108410.0,108400.0,1.12976948]
[1748314915937,0.8076788,108410.0,108400.0,1.13014012]
[1748314916533,0.8076788,108410.0,108400.0,1.13114012]
[1748314916936,0.7076788,108410.0,108400.0,1.13114012]
[1748314918842,0.30633721,108410.0,108400.0,1.13114012]
[1748314919038,0.72165721,108410.0,108400.0,1.13114012]
[1748314919543,0.30633721,108410.0,108400.0,1.13114012]
[1748314919841,0.18454749,108420.0,108410.0,0.1844188]
[1748314920038,0.75436749,108420.0,108410.0,0.7717188]
[1748314920342,0.75436749,108420.0,108410.0,0.77283072]
[1748314920642,0.75448749,108420.0,108410.0,0.77283072]
[1748314921032,0.75436749,108420.0,108410.0,0.77283072]
[1748314921233,0.75448749,108420.0,108410.0,0.58841192]
[1748314921434,0.80948749,108420.0,108410.0,0.77283072]
[1748314921938,0.39416749,108420.0,108410.0,0.77283072]
[1748314922247,0.39416749,108420.0,108410.0,1.21615278]
[1748314922248,0.00125879,108420.0,108410.0,1.21615278]
[1748314922442,0.2396683,108440.0,108430.0,0.1843848]
[1748314922743,0.5996483,108440.0,108430.0,1.04709672]
[1748314922936,0.5996483,108440.0,108430.0,1.15609672]
[1748314923130,0.5997683,108440.0,108430.0,1.15609672]
[1748314923352,0.5996483,108440.0,108430.0,1.15609672]
[1748314923652,0.60560485,108440.0,108430.0,1.15609672]
[1748314923856,0.60560485,108440.0,108430.0,1.15609662]
[1748314924051,0.65670485,108440.0,108430.0,1.15609662]
[1748314924251,0.24142485,108440.0,108430.0,1.15709662]
[1748314924555,0.65662485,108440.0,108430.0,1.15709662]
[1748314925656,0.65662485,108440.0,108430.0,0.97710374]
[1748314925955,0.65662485,108440.0,108430.0,1.16148854]
[1748314926955,0.65658485,108440.0,108430.0,1.16148854]
[1748314927359,0.6506283,108440.0,108430.0,1.16148854]
[1748314927855,0.65646485,108440.0,108430.0,1.16148854]
[1748314928859,0.70826485,108440.0,108430.0,1.16148854]
[1748314930350,0.82758691,108440.0,108430.0,0.14650374]
[1748314930551,1.54838691,108440.0,108430.0,0.14650374]
[1748314930855,1.18758691,108440.0,108430.0,0.14650374]
[1748314932060,1.60106691,108440.0,108430.0,0.14650374]
[1748314932263,2.30408691,108440.0,108430.0,4e-08]
[1748314932447,2.30408691,108440.0,108430.0,0.03000004]
[1748314933754,2.34440256,108440.0,108430.0,0.03000004]
[1748314934161,1.8828205,108440.0,108430.0,0.03000004]
[1748314934356,1.8829405,108440.0,108430.0,0.03000004]
[1748314935561,0.6935405,108440.0,108430.0,0.03000004]
[1748314935762,1.8829005,108440.0,108430.0,0.03000004]
[1748314936166,1.4678205,108440.0,108430.0,0.03000004]
[1748314936363,1.5221005,108440.0,108430.0,0.03000004]
[1748314937060,1.8829005,108440.0,108430.0,0.03000004]
[1748314937259,0.6935405,108440.0,108430.0,0.03000004]
[1748314937460,1.1086205,108440.0,108430.0,0.03000004]
[1748314937656,1.1086205,108440.0,108430.0,0.08350004]
[1748314938269,1.1086205,108440.0,108430.0,0.03000004]
[1748314940059,1.1623205,108440.0,108430.0,0.03000004]
[1748314940466,0.7472405,108440.0,108430.0,0.57518474]
[1748314940667,0.9423205,108440.0,108430.0,0.62878474]
[1748314940967,0.5271205,108440.0,108430.0,0.62878474]
[1748314941170,0.9423205,108440.0,108430.0,0.26798474]
[1748314941665,0.9423205,108440.0,108430.0,0.62878474]
[1748314942366,0.5272405,108440.0,108430.0,0.62878474]
[1748314942570,0.2306405,108440.0,108430.0,0.68308474]
[1748314942770,0.6457205,108440.0,108430.0,0.68308474]
[1748314942972,0.7520005,108440.0,108430.0,0.68308474]
[1748314943274,0.7521205,108440.0,108430.0,0.68308474]
[1748314944569,0.8221205,108440.0,108430.0,0.49870004]
[1748314944762,1.0621205,108440.0,108430.0,0.44440004]
[1748314944959,1.1151205,108440.0,108430.0,0.44440004]
[1748314945171,1.1151205,108440.0,108430.0,0.44514132]
[1748314945374,0.97262611,108440.0,108430.0,0.44514132]
[1748314948174,0.97262611,108440.0,108430.0,0.74884818]
[1748314948175,0.10377781,108440.0,108430.0,0.74884818]
[1748314948379,0.37426023,108440.0,108430.0,1.26332818]
[1748314948676,0.60509243,108440.0,108430.0,1.26332818]
[1748314948878,0.60509243,108440.0,108430.0,1.27697588]
[1748314949472,0.60497243,108440.0,108430.0,1.27697588]
[1748314949671,0.19001243,108440.0,108430.0,1.28561828]
[1748314949872,0.60497243,108440.0,108430.0,1.50561828]
[1748314950069,0.60497243,108440.0,108430.0,1.29561828]
[1748314950675,0.60509243,108440.0,108430.0,1.29561828]
[1748314951073,0.11410609,108450.0,108430.0,1.45345348]
[1748314951280,0.14254472,108470.0,108460.0,0.1843338]
[1748314951476,0.14254472,108470.0,108460.0,1.15525586]
[1748314951664,0.32698152,108470.0,108460.0,1.20525586]
[1748314952070,0.14266472,108470.0,108460.0,1.20525586]
[1748314952778,0.14266472,108470.0,108460.0,1.20925586]
[1748314952972,0.14254472,108470.0,108460.0,1.20925586]
[1748314953174,0.14266472,108470.0,108460.0,1.0899338]
[1748314953481,0.32798152,108470.0,108460.0,1.21425586]
[1748314954377,0.32798152,108470.0,108460.0,1.31665586]
[1748314954880,0.74298152,108470.0,108460.0,1.31665586]
[1748314955981,0.74298152,108470.0,108460.0,1.013]
[1748314956183,0.79488152,108470.0,108460.0,1.20172562]
[1748314956484,0.84618152,108470.0,108460.0,1.20172562]
[1748314957183,0.7036368,108470.0,108460.0,1.21172562]
[1748314957484,0.7036368,108470.0,108460.0,1.20172562]
[1748314958472,0.7036368,108470.0,108460.0,1.32104768]
[1748314959478,0.7036368,108470.0,108460.0,1.20172562]
[1748314961971,0.7036368,108470.0,108460.0,1.15172562]
[1748314962577,0.2886368,108470.0,108460.0,1.15172562]
[1748314962771,0.7035568,108470.0,108460.0,1.15172562]
[1748314964083,0.7035568,108470.0,108460.0,0.91639182]
[1748314965481,0.2886368,108470.0,108460.0,1.10072552]
[1748314965676,0.7035568,108470.0,108460.0,1.10072552]
[1748314966184,0.7035568,108470.0,108460.0,0.86499182]
[1748314966383,0.7235568,108470.0,108460.0,1.04932552]
[1748314967084,0.7235568,108470.0,108460.0,1.10402552]
[1748314968180,0.7235568,108470.0,108460.0,1.15872552]
[1748314969686,0.3086368,108470.0,108460.0,1.15872552]
[1748314969875,0.7235568,108470.0,108460.0,1.15872552]
[1748314971483,0.7235568,108470.0,108460.0,1.27804758]
[1748314971673,0.3086368,108470.0,108460.0,0.55889182]
[1748314971877,0.7235568,108470.0,108460.0,0.74322552]
[1748314972388,0.7235568,108470.0,108460.0,0.50419182]
[1748314972587,1.54367886,108470.0,108460.0,0.14339182]
[1748314972780,1.63587486,108470.0,108460.0,0.06872892]
[1748314973477,1.1016328,108470.0,108460.0,0.06872892]
[1748314973674,0.35656114,108470.0,108460.0,0.62386272]
[1748314973879,0.74136114,108470.0,108460.0,0.84698478]
[1748314974082,0.74148114,108470.0,108460.0,0.72766272]
[1748314974790,0.7035568,108470.0,108460.0,0.72766272]
[1748314976288,0.2886368,108470.0,108460.0,0.72766272]
[1748314976488,0.7035968,108470.0,108460.0,0.84698478]
[1748314976685,0.2886368,108470.0,108460.0,0.72766272]
[1748314976890,0.6522968,108470.0,108460.0,0.84698478]
[1748314977078,0.6521768,108470.0,108460.0,0.84698478]
[1748314977282,0.6522968,108470.0,108460.0,0.84698478]
[1748314977886,0.6522968,108470.0,108460.0,0.72766272]
[1748314978094,0.6522968,108470.0,108460.0,0.83720295]
[1748314978391,0.2373368,108470.0,108460.0,0.83720295]
[1748314978592,0.6522968,108470.0,108460.0,0.83720295]
[1748314978991,0.69031929,108470.0,108460.0,0.83720295]
[1748314979191,0.27535929,108470.0,108460.0,0.83720295]
[1748314979490,0.69031929,108470.0,108460.0,0.83720295]
[1748314980895,0.27535929,108470.0,108460.0,0.83720295]
[1748314981192,0.69027929,108470.0,108460.0,0.83720295]
[1748314981491,0.27535929,108470.0,108460.0,0.83720295]
[1748314981885,0.69027929,108470.0,108460.0,0.83720295]
[1748314983388,0.6522568,108470.0,108460.0,0.84738717]
[1748314983893,0.2373368,108470.0,108460.0,0.84738717]
[1748314984087,0.6522568,108470.0,108460.0,0.84738717]
[1748314985181,0.2373368,108470.0,108460.0,0.84738717]
[1748314985387,0.05302,108470.0,108460.0,0.84738717]
[1748314985586,0.46794,108470.0,108460.0,0.84738717]
[1748314985789,0.6522568,108470.0,108460.0,0.84738717]
[1748314985986,0.0529,108470.0,108460.0,0.84738717]
[1748314986185,0.46794,108470.0,108460.0,0.84738717]
[1748314986390,0.46782,108470.0,108460.0,0.84738717]
[1748314986590,0.46794,108470.0,108460.0,0.84738717]
[1748314987286,0.41604,108470.0,108460.0,0.84738717]
[1748314987492,0.41592,108470.0,108460.0,0.84738717]
[1748314987792,0.41604,108470.0,108460.0,0.84738717]
[1748314988688,0.6003567,108470.0,108460.0,0.84738717]
[1748314989187,0.41604,108470.0,108460.0,0.84738717]
[1748314990787,0.46954,108470.0,108460.0,0.84738717]
[1748314991804,0.6538568,108470.0,108460.0,0.84738717]
[1748314992296,0.46954,108470.0,108460.0,0.84738717]
[1748314992989,0.6537368,108470.0,108460.0,0.84738717]
[1748314993192,0.46954,108470.0,108460.0,0.84738717]
[1748314994099,0.6538567,108470.0,108460.0,0.84738717]
[1748314995000,0.2389367,108470.0,108460.0,0.84738717]
[1748314995300,0.6538567,108470.0,108460.0,0.84738717]
[1748314995600,0.05462,108470.0,108460.0,0.84738717]
[1748314995798,0.6538567,108470.0,108460.0,0.84738717]
[1748314995993,0.2389367,108470.0,108460.0,0.84738717]
[1748314996898,0.05462,108470.0,108460.0,0.84738717]
[1748314997100,0.2389368,108470.0,108460.0,0.84738717]
[1748314997801,0.05462,108470.0,108460.0,0.84738717]
[1748314998100,0.05462,108470.0,108460.0,0.78996547]
[1748314998289,0.00112,108470.0,108460.0,1.20280547]
[1748314998495,0.47887155,108500.0,108490.0,0.1842828]
[1748314998699,0.61083275,108500.0,108490.0,1.15468175]
[1748314999004,0.79509855,108500.0,108490.0,1.31138175]
[1748314999198,0.84751855,108500.0,108490.0,1.31138175]
[1748314999500,0.43198613,108500.0,108490.0,1.31138175]
[1748314999700,0.14443275,108510.0,108500.0,0.1842658]
[1748314999899,0.14443275,108510.0,108500.0,1.85806369]
[1748315000106,0.14455275,108510.0,108500.0,2.10806369]
[1748315000407,0.14455275,108510.0,108500.0,1.85806369]
[1748315000408,0.14443275,108510.0,108500.0,1.85806369]
[1748315000604,0.14455275,108510.0,108500.0,1.86644641]
[1748315000901,0.14655275,108510.0,108500.0,1.86644641]
[1748315001109,0.00302,108510.0,108500.0,1.87863063]
[1748315001502,0.00302,108510.0,108500.0,1.78647064]
[1748315001705,0.00102,108510.0,108500.0,1.78647064]
[1748315001908,0.00202,108510.0,108500.0,1.78847064]
[1748315003313,0.00202,108510.0,108500.0,1.67967169]
[1748315003513,0.00202,108510.0,108500.0,1.6936451]
[1748315004410,0.00202,108510.0,108500.0,1.80244405]
[1748315005713,0.00202,108510.0,108500.0,1.79225983]
[1748315006105,0.0517,108560.0,108550.0,0.1841809]
[1748315006410,0.0517,108560.0,108550.0,1.90733985]
[1748315006605,0.05182,108560.0,108550.0,1.90733985]
[1748315006906,0.14353275,108570.0,108560.0,0.184164]
[1748315007108,0.19523275,108570.0,108560.0,1.02570612]
[1748315007413,0.0517,108570.0,108560.0,1.01096295]
[1748315007710,0.05182,108570.0,108560.0,1.00496295]
[1748315007914,0.05182,108570.0,108560.0,1.01492526]
[1748315008105,0.05782,108570.0,108560.0,1.02948283]
[1748315008410,0.06282,108570.0,108560.0,1.02948283]
[1748315008901,0.05682,108570.0,108560.0,1.02848283]
[1748315009108,0.05682,108570.0,108560.0,1.02948283]
[1748315009304,0.240967,108570.0,108560.0,0.91072157]
[1748315009615,0.240967,108570.0,108560.0,1.44440283]
[1748315009814,0.294167,108570.0,108560.0,1.44440283]
[1748315010000,0.289167,108570.0,108560.0,1.44440283]
[1748315010200,0.289167,108570.0,108560.0,1.44640283]
[1748315010700,0.289167,108570.0,108560.0,1.44636283]
[1748315011206,0.289167,108570.0,108560.0,1.44710411]
[1748315011407,0.289167,108570.0,108560.0,1.03222411]
[1748315011614,0.289167,108570.0,108560.0,1.44710411]
[1748315011816,0.289167,108570.0,108560.0,0.78346285]
[1748315012012,1.44340826,108570.0,108560.0,0.13374128]
[1748315012200,1.019347,108570.0,108560.0,0.13374128]
[1748315012398,0.604667,108570.0,108560.0,0.13374128]
[1748315012718,1.13810826,108570.0,108560.0,0.13374128]
[1748315012909,1.49890826,108570.0,108560.0,0.13374128]
[1748315013214,1.84102026,108570.0,108560.0,0.04994128]
[1748315013406,0.184181,108550.0,108540.0,0.59117589]
[1748315013613,0.598861,108550.0,108540.0,0.72117589]
[1748315013816,0.653561,108550.0,108540.0,0.72117589]
[1748315014517,0.654561,108550.0,108540.0,0.72817589]
[1748315014718,1.06545026,108550.0,108540.0,0.14513879]
[1748315015215,0.946689,108550.0,108540.0,0.14513879]
[1748315016213,1.557489,108550.0,108540.0,0.14513879]
[1748315016409,0.653928,108550.0,108540.0,0.13713879]
[1748315016616,0.1842744,108570.0,108560.0,0.184164]
[1748315016811,0.10582,108570.0,108560.0,1.30012526]
[1748315017009,0.1057,108570.0,108560.0,1.30451708]
[1748315017216,0.10582,108570.0,108560.0,1.30451708]
[1748315017416,0.1057,108570.0,108560.0,1.30451708]
[1748315017614,0.10582,108570.0,108560.0,1.30451708]
[1748315017914,0.7485497,108590.0,108580.0,0.1841301]
[1748315017915,0.2301466,108590.0,108580.0,0.1841301]
[1748315018120,1.0639983,108590.0,108580.0,0.6749301]
[1748315018508,0.2345183,108590.0,108580.0,0.6749301]
[1748315018710,1.0639983,108590.0,108580.0,0.6749301]
[1748315019321,1.1148983,108590.0,108580.0,0.7286301]